bitfinex-derivatives/quotes_ETHF0:USTF0_20260121
["timestamp","ask_amount","ask_price","bid_price","bid_amount"]
[1769030850395,0.79348221,3033.7,3032.7,0.31173533]
[1769030850602,0.79348221,3033.6,3032.7,0.31173533]
[1769030850801,0.93148927,3033.8,3032.7,0.31173533]
[1769030851003,0.7934824,3033.7,3032.7,0.31173533]
[1769030851298,0.7934824,3033.6,3032.7,0.31173533]
[1769030851500,0.93148927,3033.8,3032.7,0.31173533]
[1769030851802,0.79344628,3033.7,3032.7,0.31173533]
[1769030851999,0.79344628,3033.6,3032.7,0.31173533]
[1769030852195,0.93148927,3033.8,3032.7,0.31173533]
[1769030852397,0.79341223,3033.7,3032.7,0.31173533]
[1769030852596,0.79341223,3033.6,3032.7,0.31173533]
[1769030852795,0.93148927,3033.8,3032.7,0.31173533]
[1769030852996,0.79341223,3033.7,3032.7,0.31173533]
[1769030853199,0.79341223,3033.6,3032.7,0.31173533]
[1769030853392,0.93148927,3033.8,3032.7,0.31173533]
[1769030853597,0.79342314,3033.7,3032.7,0.31173533]
[1769030853895,0.79342314,3033.6,3032.7,0.31173533]
[1769030854194,0.93148927,3033.8,3032.7,0.31173533]
[1769030854397,0.79345619,3033.7,3032.7,0.31173533]
[1769030854700,0.79345619,3033.6,3032.7,0.31173533]
[1769030854902,0.93148927,3033.8,3032.7,0.31173533]
[1769030855203,0.79345619,3033.7,3032.7,0.31173533]
[1769030855400,0.79345619,3033.6,3032.7,0.31173533]
[1769030855593,0.93148927,3033.8,3032.7,0.31173533]
[1769030855794,0.793522,3033.7,3032.7,0.31173533]
[1769030856003,0.793522,3033.6,3032.7,0.31173533]
[1769030856203,0.93148927,3033.8,3032.7,0.31173533]
[1769030856501,0.79360151,3033.7,3032.7,0.31173533]
[1769030856703,0.79360151,3033.6,3032.7,0.31173533]
[1769030857007,0.93148927,3033.8,3032.7,0.31173533]
[1769030857203,0.79360114,3033.7,3032.7,0.31173533]
[1769030857398,0.79360114,3033.6,3032.7,0.31173533]
[1769030857604,0.93148927,3033.8,3032.7,0.31173533]
[1769030857901,0.79379071,3033.7,3032.7,0.31173533]
[1769030858105,0.79379071,3033.6,3032.7,0.31173533]
[1769030858304,0.93148927,3033.8,3032.7,0.31173533]
[1769030858504,0.79400489,3033.7,3032.7,0.31173533]
[1769030858709,0.79400489,3033.6,3032.7,0.31173533]
[1769030858903,0.93148927,3033.8,3032.7,0.31173533]
[1769030859202,0.7940049,3033.7,3032.7,0.31173533]
[1769030859403,0.7940049,3033.6,3032.7,0.31173533]
[1769030859603,0.93148927,3033.8,3032.7,0.31173533]
[1769030859804,0.79421767,3033.7,3032.7,0.31173533]
[1769030860106,0.79421767,3033.6,3032.7,0.31173533]
[1769030860308,0.79421767,3033.5,3032.7,0.31173533]
[1769030860506,0.93148927,3033.8,3032.7,0.31173533]
[1769030860807,0.79443177,3033.7,3032.7,0.31173533]
[1769030861009,0.79443177,3033.6,3032.7,0.31173533]
[1769030861209,0.79443177,3033.5,3032.7,0.31173533]
[1769030861503,0.93148927,3033.8,3032.7,0.31173533]
[1769030861708,0.79472952,3033.7,3032.7,0.31173533]
[1769030861910,0.79472952,3033.6,3032.7,0.31173533]
[1769030862108,0.79472952,3033.5,3032.7,0.31173533]
[1769030862310,0.79472952,3033.4,3032.7,0.31173533]
[1769030862510,0.93148927,3033.8,3032.7,0.31173533]
[1769030862810,0.7949066,3033.7,3032.7,0.31173533]
[1769030863103,0.7949066,3033.6,3032.7,0.31173533]
[1769030863307,0.7949066,3033.5,3032.7,0.31173533]
[1769030863511,0.7949066,3033.4,3032.7,0.31173533]
[1769030863812,0.7949066,3033.3,3032.7,0.31173533]
[1769030864010,0.93148927,3033.8,3032.7,0.31173533]
[1769030864212,0.79514255,3033.7,3032.7,0.31173533]
[1769030864409,0.79514255,3033.6,3032.7,0.31173533]
[1769030864708,0.79514255,3033.5,3032.7,0.31173533]
[1769030864908,0.79514255,3033.4,3032.7,0.31173533]
[1769030865101,0.79514255,3033.3,3032.7,0.31173533]
[1769030865407,0.93148927,3033.8,3032.7,0.31173533]
[1769030865603,0.79569364,3033.7,3032.7,0.31173533]
[1769030865804,0.79569364,3033.6,3032.7,0.31173533]
[1769030866003,0.79569364,3033.5,3032.7,0.31173533]
[1769030866205,0.79569364,3033.4,3032.7,0.31173533]
[1769030866410,0.79569364,3033.3,3032.7,0.31173533]
[1769030866608,0.93148927,3033.8,3032.7,0.31173533]
[1769030866807,0.79569375,3033.7,3032.7,0.31173533]
[1769030867106,0.79569375,3033.6,3032.7,0.31173533]
[1769030867305,0.79569375,3033.5,3032.7,0.31173533]
[1769030867506,0.79569375,3033.4,3032.7,0.31173533]
[1769030867702,0.79569375,3033.3,3032.7,0.31173533]
[1769030867902,0.79569375,3033.2,3032.7,0.31173533]
[1769030868102,0.93148927,3033.8,3032.7,0.31173533]
[1769030868306,0.79570401,3033.7,3032.7,0.31173533]
[1769030868508,0.79570401,3033.6,3032.7,0.31173533]
[1769030868710,0.79570401,3033.5,3032.7,0.31173533]
[1769030868910,0.79570401,3033.4,3032.7,0.31173533]
[1769030869213,0.79570401,3033.3,3032.7,0.31173533]
[1769030869405,0.79570401,3033.2,3032.7,0.31173533]
[1769030869605,0.93148927,3033.8,3032.7,0.31173533]
[1769030869810,0.79571041,3033.7,3032.7,0.31173533]
[1769030870011,0.79571041,3033.6,3032.7,0.31173533]
[1769030870315,0.79571041,3033.5,3032.7,0.31173533]
[1769030870505,0.79571041,3033.4,3032.7,0.31173533]
[1769030870813,0.79571041,3033.3,3032.7,0.31173533]
[1769030871008,0.79571041,3033.2,3032.7,0.31173533]
[1769030871311,0.93148927,3033.8,3032.7,0.31173533]
[1769030871507,0.795727,3033.7,3032.7,0.31173533]
[1769030871708,0.795727,3033.6,3032.7,0.31173533]
[1769030871909,0.795727,3033.5,3032.7,0.31173533]
[1769030872206,0.795727,3033.4,3032.7,0.31173533]
[1769030872406,0.795727,3033.3,3032.7,0.31173533]
[1769030872607,0.795727,3033.2,3032.7,0.31173533]
[1769030872808,0.93148927,3033.8,3032.7,0.31173533]
[1769030873008,0.79574324,3033.7,3032.7,0.31173533]
[1769030873208,0.79574324,3033.6,3032.7,0.31173533]
[1769030873411,0.79574324,3033.5,3032.7,0.31173533]
[1769030873612,0.79574324,3033.4,3032.7,0.31173533]
[1769030873813,0.79574324,3033.3,3032.7,0.31173533]
[1769030874113,0.93148927,3033.8,3032.7,0.31173533]
[1769030874304,0.79558675,3033.7,3032.7,0.31173533]
[1769030874503,0.79558675,3033.6,3032.7,0.31173533]
[1769030874708,0.79558675,3033.5,3032.7,0.31173533]
[1769030874915,0.79558675,3033.4,3032.7,0.31173533]
[1769030875115,0.79558675,3033.3,3032.7,0.31173533]
[1769030875417,0.93148927,3033.8,3032.7,0.31173533]
[1769030875615,0.79559225,3033.7,3032.7,0.31173533]
[1769030875914,0.79559225,3033.6,3032.7,0.31173533]
[1769030876113,0.79559225,3033.5,3032.7,0.31173533]
[1769030876309,0.79559225,3033.4,3032.7,0.31173533]
[1769030876510,0.79559225,3033.3,3032.7,0.31173533]
[1769030876710,0.93148927,3033.8,3032.7,0.31173533]
[1769030876913,0.79559863,3033.7,3032.7,0.31173533]
[1769030877112,0.79559863,3033.6,3032.7,0.31173533]
[1769030877312,0.93148927,3033.8,3032.7,0.31173533]
[1769030877313,0.79559863,3033.5,3032.7,0.31173533]
[1769030877513,0.79559863,3033.4,3032.7,0.31173533]
[1769030877818,0.79559863,3033.3,3032.7,0.31173533]
[1769030878018,0.93148927,3033.8,3032.7,0.31173533]
[1769030878213,0.79560236,3033.7,3032.7,0.31173533]
[1769030878517,0.79560236,3033.6,3032.7,0.31173533]
[1769030878716,0.79560236,3033.5,3032.7,0.31173533]
[1769030878916,0.79560236,3033.4,3032.7,0.31173533]
[1769030879215,0.79560236,3033.3,3032.7,0.31173533]
[1769030879415,0.93148927,3033.8,3032.7,0.31173533]
[1769030879608,0.79569183,3033.7,3032.7,0.31173533]
[1769030879810,0.79569183,3033.6,3032.7,0.31173533]
[1769030880017,0.79569183,3033.5,3032.7,0.31173533]
[1769030880221,0.79569183,3033.4,3032.7,0.31173533]
[1769030880515,0.79569183,3033.3,3032.7,0.31173533]
[1769030880713,0.93148927,3033.8,3032.7,0.31173533]
[1769030881015,0.79569249,3033.7,3032.7,0.31173533]
[1769030881212,0.93148927,3033.8,3032.7,0.31173533]
[1769030881213,0.79569249,3033.6,3032.7,0.31173533]
[1769030881413,0.79569249,3033.5,3032.7,0.31173533]
[1769030881611,0.79569249,3033.4,3032.7,0.31173533]
[1769030881812,0.79569249,3033.3,3032.7,0.31173533]
[1769030882118,0.93148927,3033.8,3032.7,0.31173533]
[1769030882416,0.79568989,3033.7,3032.7,0.31173533]
[1769030882617,0.93148927,3033.5,3032.3,0.21376294]
[1769030882818,0.79568989,3033.4,3032.3,0.21376294]
[1769030884319,0.93148927,3032.9,3031.6,0.00341273]
[1769030884613,0.79568989,3032.8,3032.1,0.93148927]
[1769030884814,0.93148927,3033.6,3032.2,0.21376294]
[1769030885014,0.7953163,3033.5,3032.3,0.21376294]
[1769030885318,0.93148927,3033.0,3032.2,0.16503]
[1769030887420,0.28061064,3032.9,3032.2,0.16503]
[1769030887619,0.28061064,3032.8,3032.2,0.16503]
[1769030887809,0.93148927,3033.0,3032.2,0.16503]
[1769030888014,0.28061057,3032.9,3032.2,0.16503]
[1769030888311,0.28061057,3032.8,3032.2,0.16503]
[1769030888512,0.93148927,3033.0,3032.2,0.16503]
[1769030888708,0.2805888,3032.9,3032.2,0.16503]
[1769030888915,0.2805888,3032.8,3032.2,0.16503]
[1769030889114,0.93148927,3033.0,3032.2,0.16503]
[1769030889313,0.2805865,3032.9,3032.2,0.16503]
[1769030889514,0.2805865,3032.8,3032.2,0.16503]
[1769030889714,0.93148927,3033.0,3032.2,0.16503]
[1769030889914,0.28057138,3032.9,3032.2,0.16503]
[1769030890114,0.28057138,3032.8,3032.2,0.16503]
[1769030890314,0.93148927,3033.0,3032.2,0.16503]
[1769030890517,0.28055658,3032.9,3032.2,0.16503]
[1769030890716,0.28055658,3032.8,3032.2,0.16503]
[1769030891012,0.93148927,3033.3,3032.2,0.16503]
[1769030891212,1.07650755,3033.2,3032.2,0.16503]
[1769030891409,0.28055573,3033.1,3032.2,0.16503]
[1769030891620,0.28055573,3033.0,3032.2,0.16503]
[1769030891918,0.28055573,3032.9,3032.2,0.16503]
[1769030892220,0.28055573,3032.8,3032.2,0.16503]
[1769030892419,0.93148927,3033.3,3032.2,0.16503]
[1769030892620,1.07642546,3033.2,3032.2,0.16503]
[1769030892823,0.93148927,3033.3,3032.2,0.16503]
[1769030892824,0.28053429,3033.1,3032.2,0.16503]
[1769030893120,0.28053429,3033.0,3032.2,0.16503]
[1769030893320,0.28053429,3032.9,3032.2,0.16503]
[1769030893519,0.28053429,3032.8,3032.2,0.16503]
[1769030893722,0.93148927,3033.3,3032.2,0.16503]
[1769030894020,1.07639617,3033.2,3032.2,0.16503]
[1769030894217,0.28052664,3033.1,3032.2,0.16503]
[1769030894422,0.28052664,3033.0,3032.2,0.16503]
[1769030894621,0.28052664,3032.9,3032.2,0.16503]
[1769030894821,0.28052664,3032.8,3032.2,0.16503]
[1769030895023,0.93148927,3033.3,3032.2,0.16503]
[1769030895224,1.07639359,3033.2,3032.2,0.16503]
[1769030895423,0.28052648,3033.1,3032.2,0.16503]
[1769030895723,0.28052648,3033.0,3032.2,0.16503]
[1769030896025,0.28052648,3032.9,3032.2,0.16503]
[1769030896215,0.28052648,3032.8,3032.2,0.16503]
[1769030896415,0.93148927,3033.3,3032.2,0.16503]
[1769030896715,1.07635602,3033.2,3032.2,0.16503]
[1769030896916,0.2805166,3033.1,3032.2,0.16503]
[1769030897215,0.2805166,3033.0,3032.2,0.16503]
[1769030897417,0.2805166,3032.9,3032.2,0.16503]
[1769030897717,0.2805166,3032.8,3032.2,0.16503]
[1769030897917,0.93148927,3033.3,3032.2,0.16503]
[1769030898123,1.07634886,3033.2,3032.2,0.16503]
[1769030898426,0.28051471,3033.1,3032.2,0.16503]
[1769030898727,0.28051471,3033.0,3032.2,0.16503]
[1769030898919,0.28051471,3032.9,3032.2,0.16503]
[1769030899120,0.28051471,3032.8,3032.2,0.16503]
[1769030899319,0.93148927,3033.3,3032.2,0.16503]
[1769030899526,1.07635147,3033.2,3032.2,0.16503]
[1769030899726,0.28051524,3033.1,3032.2,0.16503]
[1769030900026,0.28051524,3033.0,3032.2,0.16503]
[1769030900221,0.28051524,3032.9,3032.2,0.16503]
[1769030900420,0.28051524,3032.8,3032.2,0.16503]
[1769030900621,0.93148927,3033.3,3032.2,0.16503]
[1769030900922,1.07866572,3033.2,3032.2,0.16503]
[1769030901120,0.28282417,3033.1,3032.2,0.16503]
[1769030901327,0.28282417,3033.0,3032.2,0.16503]
[1769030901629,0.28282417,3032.9,3032.2,0.16503]
[1769030901824,0.28282417,3032.8,3032.2,0.16503]
[1769030902031,0.93148927,3033.3,3032.2,0.16503]
[1769030902224,1.07868877,3033.2,3032.2,0.16503]
[1769030902425,0.28283019,3033.1,3032.2,0.16503]
[1769030902724,0.28283019,3033.0,3032.2,0.16503]
[1769030902924,0.28283019,3032.9,3032.2,0.16503]
[1769030903127,0.28283784,3032.8,3032.2,0.16503]
[1769030903325,0.93148927,3033.3,3032.2,0.16503]
[1769030903627,1.07875077,3033.2,3032.2,0.16503]
[1769030903828,0.28284638,3033.1,3032.2,0.16503]
[1769030904029,0.28284638,3033.0,3032.2,0.16503]
[1769030904327,0.28284638,3032.9,3032.2,0.16503]
[1769030904520,0.28284638,3032.8,3032.2,0.16503]
[1769030904721,0.93148927,3033.3,3032.2,0.16503]
[1769030904926,1.07754947,3033.2,3032.2,0.16503]
[1769030905129,0.28285696,3033.1,3032.2,0.16503]
[1769030905330,0.93148927,3033.3,3032.2,0.16503]
[1769030905528,0.79473086,3033.2,3032.2,0.16503]
[1769030905730,0.93148927,3033.3,3032.2,0.16503]
[1769030905919,0.79473086,3033.2,3032.2,0.16503]
[1769030906124,0.93148927,3033.8,3032.2,0.16503]
[1769030906125,1.07759749,3033.1,3032.2,0.16503]
[1769030906324,1.2143559,3033.1,3032.2,0.16503]
[1769030906531,0.93148927,3033.1,3032.2,0.16503]
[1769030907044,0.79502699,3033.0,3032.2,0.16503]
[1769030907233,0.9319144,3033.6,3032.2,0.16503]
[1769030907533,0.79502269,3033.5,3032.2,0.16503]
[1769030907725,0.79502269,3033.4,3032.2,0.16503]
[1769030907927,0.79502269,3033.3,3032.2,0.16503]
[1769030908126,0.79502269,3033.2,3032.2,0.16503]
[1769030908326,0.9319144,3033.6,3032.2,0.16503]
[1769030908327,0.79502269,3033.1,3032.2,0.16503]
[1769030908527,0.79502269,3033.0,3032.2,0.16503]
[1769030908833,0.79502269,3032.9,3032.2,0.16503]
[1769030909021,0.9319144,3033.6,3032.2,0.16503]
[1769030909220,1.07789606,3033.5,3032.2,0.16503]
[1769030909424,1.07789606,3033.4,3032.2,0.16503]
[1769030909620,1.07789606,3033.3,3032.2,0.16503]
[1769030909832,1.07789606,3033.2,3032.2,0.16503]
[1769030910026,1.07789606,3033.1,3032.2,0.16503]
[1769030910228,1.07789606,3033.0,3032.2,0.16503]
[1769030910432,1.07789606,3032.9,3032.2,0.16503]
[1769030910625,0.28292299,3032.8,3032.2,0.16503]
[1769030910928,0.28292299,3032.7,3032.2,0.16503]
[1769030911134,0.28292299,3032.6,3032.2,0.16503]
[1769030911336,0.28292299,3032.5,3032.2,0.16503]
[1769030911536,0.9319144,3033.6,3032.2,0.16503]
[1769030911832,1.07770576,3033.5,3032.2,0.16503]
[1769030912034,1.07770576,3033.4,3032.2,0.16503]
[1769030912334,1.07770576,3033.3,3032.2,0.16503]
[1769030912533,1.07770576,3033.2,3032.2,0.16503]
[1769030912834,1.07770576,3033.1,3032.2,0.16503]
[1769030913036,1.07770576,3033.0,3032.2,0.16503]
[1769030913234,1.07770576,3032.9,3032.2,0.16503]
[1769030913435,0.2828413,3032.8,3032.2,0.16503]
[1769030913635,0.2828413,3032.7,3032.2,0.3544954]
[1769030913838,0.2828413,3032.6,3032.2,0.3544954]
[1769030914037,0.9319144,3033.6,3032.2,0.3544954]
[1769030914239,0.79488693,3033.5,3032.2,0.3544954]
[1769030914541,0.79488693,3033.4,3032.2,0.3544954]
[1769030914835,0.79488693,3033.3,3032.2,0.3544954]
[1769030915036,0.79488693,3033.2,3032.2,0.3544954]
[1769030915237,0.79488693,3033.1,3032.2,0.3544954]
[1769030915533,0.79488693,3033.0,3032.2,0.3544954]
[1769030915737,0.79488693,3032.9,3032.2,0.3544954]
[1769030915927,0.9319144,3033.6,3032.2,0.3544954]
[1769030916128,0.79484772,3033.5,3032.2,0.3544954]
[1769030916325,0.79484772,3033.4,3032.2,0.3544954]
[1769030916535,0.9319144,3033.6,3032.2,0.3544954]
[1769030916536,0.79484772,3033.3,3032.2,0.3544954]
[1769030916836,0.79484772,3033.2,3032.2,0.3544954]
[1769030917136,0.79484772,3033.1,3032.2,0.3544954]
[1769030917334,0.9319144,3033.6,3031.6,0.00341273]
[1769030917335,0.79484772,3033.0,3031.6,0.00341273]
[1769030917538,0.9319144,3032.3,3031.1,0.1894654]
[1769030917832,0.79484772,3032.2,3031.1,0.1894654]
[1769030918031,0.9319144,3031.9,3030.6,0.1894654]
[1769030918234,0.79484772,3031.8,3030.6,0.1894654]
[1769030918431,0.79858275,3031.8,3030.6,0.19295885]
[1769030918737,0.00373503,3031.8,3030.6,0.19295885]
[1769030920537,0.00373503,3031.8,3030.7,0.1894654]
[1769030925540,0.00373503,3031.8,3031.0,0.1894654]
[1769030926137,0.9319144,3032.7,3031.0,0.1894654]
[1769030926343,1.07062991,3032.6,3031.0,0.1894654]
[1769030926536,1.07062991,3032.5,3031.0,0.1894654]
[1769030926737,0.27929883,3032.4,3031.0,0.1894654]
[1769030927042,0.27929883,3032.3,3031.0,0.1894654]
[1769030927239,0.00284035,3032.3,3031.0,0.1894654]
[1769030927745,0.27930259,3032.2,3031.1,0.1894654]
[1769030928042,0.00284035,3032.3,3031.1,0.1894654]
[1769030928237,0.00284035,3032.3,3031.2,0.1894654]
[1769030928434,0.00284035,3032.3,3031.3,0.1894654]
[1769030930242,40.96496,3033.6,3031.7,0.1894654]
[1769030930442,1.07071071,3033.5,3031.8,0.1894654]
[1769030930642,1.07071071,3033.4,3031.8,0.1894654]
[1769030930837,1.07071071,3033.3,3031.9,0.1894654]
[1769030931048,0.2793607,3033.2,3032.0,0.1894654]
[1769030931247,0.9319144,3033.7,3032.0,0.1894654]
[1769030931248,0.2793607,3033.1,3032.0,0.1894654]
[1769030931448,0.2793607,3033.0,3032.0,0.1894654]
[1769030931746,0.00332398,3033.1,3032.0,0.1894654]
[1769030931946,0.27936226,3033.0,3032.0,0.1894654]
[1769030932242,0.27940872,3032.9,3032.0,0.1894654]
[1769030932448,0.00332398,3033.1,3032.0,0.1894654]
[1769030932643,0.27940879,3033.0,3032.0,0.1894654]
[1769030932850,0.27940879,3032.9,3032.0,0.1894654]
[1769030933148,0.00332398,3033.1,3032.0,0.1894654]
[1769030933348,0.9319144,3032.9,3031.4,0.1894654]
[1769030933553,1.07100924,3032.8,3031.4,0.1894654]
[1769030933841,0.27942528,3032.7,3031.4,0.1894654]
[1769030934038,0.27942528,3032.6,3031.4,0.1894654]
[1769030934246,0.9319144,3032.9,3031.4,0.1894654]
[1769030934247,0.27942528,3032.5,3031.4,0.1894654]
[1769030934543,0.27942528,3032.4,3031.4,0.1894654]
[1769030934842,0.9319144,3032.9,3031.4,0.1894654]
[1769030935046,1.07120503,3032.8,3031.4,0.1894654]
[1769030935242,1.07120503,3032.7,3031.3,0.16508]
[1769030935545,1.07138297,3032.6,3030.9,0.1894654]
[1769030935752,0.27959879,3032.5,3030.9,0.3545654]
[1769030935941,0.27959879,3032.4,3030.9,0.3545654]
[1769030936148,0.27959879,3032.3,3030.9,0.3545654]
[1769030936346,0.9319144,3032.9,3030.9,0.3545654]
[1769030936546,1.0715326,3032.8,3030.9,0.3545654]
[1769030936849,1.0715326,3032.7,3031.1,0.16509]
[1769030937048,1.0715326,3032.6,3031.1,0.16509]
[1769030937249,0.27962794,3032.5,3031.1,0.16509]
[1769030937453,0.27962794,3032.4,3031.1,0.16509]
[1769030937652,0.27962794,3032.3,3031.1,0.16509]
[1769030937951,0.9319144,3032.9,3031.1,0.16509]
[1769030938246,1.07166802,3032.8,3031.1,0.16509]
[1769030938453,1.07166802,3032.7,3031.1,0.16509]
[1769030938656,1.07166802,3032.6,3031.1,0.16509]
[1769030938845,0.27965459,3032.5,3031.1,0.16509]
[1769030939046,0.27965459,3032.4,3031.1,0.16509]
[1769030939252,0.27965459,3032.3,3031.1,0.16509]
[1769030939446,0.9319144,3032.9,3031.1,0.16509]
[1769030939743,1.07189909,3032.8,3031.1,0.16509]
[1769030939944,1.07189909,3032.7,3031.1,0.16509]
[1769030940149,0.9319144,3032.9,3031.1,0.16509]
[1769030940150,1.07189909,3032.6,3031.1,0.16509]
[1769030940351,0.27971192,3032.5,3031.1,0.16509]
[1769030940653,0.27971192,3032.4,3031.1,0.16509]
[1769030940853,0.27971192,3032.3,3031.1,0.16509]
[1769030941152,0.9319144,3032.9,3031.1,0.16509]
[1769030941449,1.07199829,3032.8,3031.1,0.16509]
[1769030941654,1.07199829,3032.7,3031.1,0.16509]
[1769030941952,1.07199829,3032.6,3031.1,0.16509]
[1769030942149,0.9319144,3032.1,3030.1,0.18593054]
[1769030942354,1.07211575,3032.0,3030.1,0.35107054]
[1769030942650,1.07211575,3031.9,3030.1,0.35107054]
[1769030942852,1.07211575,3031.8,3030.1,0.35107054]
[1769030943052,1.07211575,3031.7,3030.1,0.35107054]
[1769030943249,0.27973725,3031.6,3030.1,0.35394965]
[1769030943552,0.27973725,3031.5,3030.1,0.35394965]
[1769030943748,0.27973725,3031.4,3030.1,0.35394965]
[1769030943952,1.0969544,3032.1,3030.1,0.35394965]
[1769030944149,1.07235248,3032.0,3030.1,0.35394965]
[1769030944354,1.07235248,3031.9,3030.1,0.35394965]
[1769030944554,1.07235248,3031.8,3030.1,0.35394965]
[1769030944853,0.2798404,3031.7,3030.1,0.35394965]
[1769030945053,0.2798404,3031.6,3030.1,0.35394965]
[1769030945254,0.2798404,3031.5,3030.1,0.35394965]
[1769030945455,0.2798404,3031.4,3030.1,0.35394965]
[1769030945758,1.834,3031.8,3030.1,0.35394965]
[1769030946055,1.07247741,3031.7,3030.1,0.35394965]
[1769030946256,0.27987177,3031.6,3030.1,0.35394965]
[1769030946454,0.27987177,3031.5,3030.1,0.35394965]
[1769030946750,0.27987177,3031.4,3030.1,0.16801911]
[1769030946952,0.27987177,3031.3,3030.1,0.16801911]
[1769030947255,0.27987177,3031.3,3030.1,0.00287911]
[1769030947256,0.27987177,3031.2,3030.1,0.00287911]
[1769030948256,0.55275432,3031.2,3030.1,0.00287911]
[1769030948557,0.27987177,3031.1,3030.1,0.00287911]
[1769030948751,2.781,3031.5,3030.1,0.00287911]
[1769030949061,0.27988962,3031.4,3030.1,0.00287911]
[1769030949259,0.27988962,3031.3,3030.1,0.00287911]
[1769030949453,0.27988962,3031.2,3030.1,0.00287911]
[1769030949659,0.27988962,3031.1,3030.1,0.00287911]
[1769030949955,2.781,3031.5,3030.1,0.00287911]
[1769030950154,0.27982041,3031.4,3030.1,0.00287911]
[1769030950355,0.27982041,3031.3,3030.1,0.00287911]
[1769030950559,0.27982041,3031.2,3030.1,0.00287911]
[1769030950759,0.27982041,3031.1,3030.1,0.00287911]
[1769030951056,0.27555485,3031.3,3030.1,0.00287911]
[1769030951258,0.27977035,3031.2,3030.1,0.00287911]
[1769030951457,2.781,3031.5,3030.1,0.00287911]
[1769030951657,0.27972318,3031.4,3030.1,0.00287911]
[1769030951859,0.27972318,3031.3,3030.1,0.00287911]
[1769030952062,0.27972318,3031.2,3030.1,0.00287911]
[1769030952260,0.2796938,3031.1,3030.1,0.00287911]
[1769030952460,0.26973405,3031.3,3030.1,0.00287911]
[1769030952758,0.27969392,3031.2,3030.1,0.00287911]
[1769030953059,0.27969392,3031.1,3030.1,0.00287911]
[1769030953259,2.781,3031.5,3030.1,0.00287911]
[1769030953453,0.2796478,3031.4,3030.1,0.00287911]
[1769030953653,0.2796478,3031.3,3030.1,0.00287911]
[1769030953957,0.2796478,3031.2,3030.1,0.00287911]
[1769030954261,0.27868491,3031.3,3030.1,0.00287911]
[1769030954461,2.781,3031.5,3030.1,0.00287911]
[1769030954462,0.27960466,3031.2,3030.1,0.00287911]
[1769030954657,2.781,3031.5,3030.1,0.00287911]
[1769030954961,0.27960466,3031.4,3030.1,0.00287911]
[1769030955261,0.27960466,3031.3,3030.1,0.00287911]
[1769030955464,2.777,3031.4,3030.1,0.00287911]
[1769030955762,0.27956421,3031.3,3030.1,0.00287911]
[1769030955962,2.777,3031.4,3030.1,0.00287911]
[1769030956257,0.27956428,3031.3,3030.1,0.00287911]
[1769030956562,2.776,3031.4,3030.1,0.00287911]
[1769030956755,0.27952774,3031.3,3030.1,0.00287911]
[1769030957060,40.8,3032.4,3030.2,0.35107054]
[1769030957061,2.775,3031.8,3030.2,0.35107054]
[1769030957361,1.07006144,3031.7,3030.2,0.35107054]
[1769030957561,0.27950197,3031.6,3030.2,0.35107054]
[1769030957863,0.27950197,3031.5,3030.2,4.21907054]
[1769030958062,0.27950197,3031.4,3030.2,4.21907054]
[1769030958361,2.775,3031.8,3030.2,4.21907054]
[1769030958555,1.06998113,3031.7,3030.2,4.21907054]
[1769030958750,0.27948321,3031.6,3030.2,4.21907054]
[1769030958965,0.27948321,3031.5,3030.2,4.21907054]
[1769030959259,0.27392888,3031.7,3030.2,4.21907054]
[1769030959461,0.27947996,3031.6,3030.2,4.21907054]
[1769030959660,0.27947996,3031.5,3030.2,4.21907054]
[1769030959860,0.27947996,3031.4,3030.2,4.21907054]
[1769030960161,0.27392888,3031.7,3030.2,4.21907054]
[1769030960360,0.27948914,3031.6,3030.2,4.21907054]
[1769030960561,0.27948914,3031.5,3030.2,4.21907054]
[1769030960760,0.27948914,3031.4,3030.2,4.21907054]
[1769030960959,0.27392888,3031.7,3030.2,4.21907054]
[1769030961262,1.07029733,3031.6,3030.2,4.21907054]
[1769030961560,0.27949323,3031.5,3030.2,4.21907054]
[1769030961859,0.27949323,3031.4,3030.2,4.21907054]
[1769030962065,0.27392888,3031.7,3030.2,4.21907054]
[1769030962259,1.07045377,3031.6,3030.2,4.21907054]
[1769030962461,0.27392888,3031.7,3030.2,4.21907054]
[1769030962462,0.27960563,3031.5,3030.2,4.21907054]
[1769030962761,0.27960563,3031.4,3030.2,4.21907054]
[1769030962963,0.27960563,3031.3,3030.2,4.21907054]
[1769030963162,0.27392888,3031.7,3030.2,4.21907054]
[1769030963357,1.07146069,3031.6,3030.2,4.21907054]
[1769030963564,1.07146069,3031.5,3030.2,4.21907054]
[1769030963763,0.27987929,3031.4,3030.2,4.21907054]
[1769030964059,0.27987929,3031.3,3030.2,4.21907054]
[1769030964264,0.27392888,3031.7,3030.2,4.21907054]
[1769030964462,1.07245852,3031.6,3030.2,4.21907054]
[1769030964662,1.07245852,3031.5,3030.2,4.21907054]
[1769030964861,0.27995648,3031.4,3030.2,4.21907054]
[1769030965060,0.27995648,3031.3,3030.2,4.21907054]
[1769030965261,0.28002019,3031.2,3030.2,4.21907054]
[1769030965461,0.27392888,3031.7,3030.2,4.21907054]
[1769030965763,1.07276749,3031.6,3030.2,4.21907054]
[1769030965970,1.07276749,3031.5,3030.2,4.21907054]
[1769030966262,0.28003643,3031.4,3030.2,4.21907054]
[1769030966456,0.27392888,3031.7,3030.2,4.21907054]
[1769030966457,0.28003643,3031.3,3030.2,4.21907054]
[1769030966661,0.28003643,3031.2,3030.2,4.21907054]
[1769030966866,0.28003643,3031.1,3030.2,4.21907054]
[1769030967068,0.93296233,3031.5,3030.2,4.21907054]
[1769030967260,1.0731185,3031.4,3030.2,4.21907054]
[1769030967561,0.28012728,3031.3,3030.2,4.21907054]
[1769030967764,0.28012728,3031.2,3030.2,4.21907054]
[1769030968065,0.28012728,3031.1,3030.2,4.21907054]
[1769030968360,0.28038509,3031.0,3030.2,4.21907054]
[1769030968560,0.93296233,3031.5,3030.2,4.21907054]
[1769030968767,1.07411256,3031.4,3030.2,4.21907054]
[1769030968958,1.07411256,3031.3,3030.2,4.21907054]
[1769030969263,0.28038504,3031.2,3030.2,4.21907054]
[1769030969560,0.28038504,3031.1,3030.2,4.21907054]
[1769030969866,0.28038504,3031.0,3030.2,4.21907054]
[1769030970065,0.93296233,3031.5,3030.2,4.21907054]
[1769030970265,1.07484652,3031.4,3030.2,4.21907054]
[1769030970465,1.07484652,3031.3,3030.2,4.21907054]
[1769030970666,0.28057516,3031.2,3030.2,4.21907054]
[1769030970866,0.28057516,3031.1,3030.2,4.21907054]
[1769030971070,0.28057516,3031.0,3030.2,4.21907054]
[1769030971368,0.28088147,3030.9,3030.2,4.21907054]
[1769030971558,0.00298054,3030.9,3030.2,4.21907054]
[1769030972359,0.28094679,3030.8,3030.2,4.21907054]
[1769030972562,0.00298054,3030.9,3030.2,4.21907054]
[1769030972766,0.28095749,3030.8,3030.2,4.21907054]
[1769030972958,0.00298054,3030.9,3030.2,4.21907054]
[1769030973158,0.28095444,3030.8,3030.2,4.21907054]
[1769030973357,0.00298054,3030.9,3030.2,4.03314]